bitfinex-derivatives/quotes_BNBF0:USTF0_20250330
["timestamp","ask_amount","ask_price","bid_price","bid_amount"]
[1743307156171,0.32826707,609.26,608.27,1.0]
[1743307174189,1.112,609.25,608.27,1.0]
[1743307185607,1.467,609.24,608.27,1.0]
[1743307188914,0.32828324,609.23,608.27,1.0]
[1743307192419,1.44999213,609.23,608.27,1.0]
[1743307195923,2.86139061,609.23,608.27,1.0]
[1743307199528,1.44999213,609.23,608.27,1.0]
[1743307199826,1.12170889,609.22,608.27,1.0]
[1743307200021,0.32829402,609.21,608.27,1.0]
[1743307200225,1.45000291,609.21,608.27,1.0]
[1743307200619,1.12170889,609.2,608.27,1.0]
[1743307200922,0.32830479,609.19,608.27,1.0]
[1743307201119,1.12170889,609.18,608.27,1.0]
[1743307201322,0.32831557,609.17,608.27,1.0]
[1743307201824,1.12170889,609.16,608.27,1.0]
[1743307202027,0.32832635,609.15,608.27,1.0]
[1743307202428,0.32832635,609.15,608.26,0.28590442]
[1743307203029,1.45003524,609.15,608.26,0.28590442]
[1743307203626,0.32832635,609.15,608.26,0.28590442]
[1743307204431,0.32832635,609.15,607.67,2.47085025]
[1743307204732,0.32832635,609.15,608.13,1.0]
[1743307204931,0.32832635,609.15,608.26,0.2859749]
[1743307205126,0.32832635,609.15,607.68,0.32912058]
[1743307205329,0.32832635,609.15,608.13,1.0]
[1743307206327,1.07,609.14,608.13,1.0]
[1743307206531,0.32833713,609.13,608.14,0.28591734]
[1743307207340,0.32833713,609.13,607.68,0.32912058]
[1743307207531,0.32833713,609.13,608.13,1.0]
[1743307207733,0.32833713,609.13,608.14,0.28598313]
[1743307208034,0.966,609.12,607.68,0.32912058]
[1743307208239,0.32834791,609.11,608.13,1.0]
[1743307208837,0.32834791,609.11,608.14,0.28590677]
[1743307213540,0.32834791,609.11,608.13,1.0]
[1743307213743,0.32834791,609.11,608.14,0.28590677]
[1743307216442,0.32834791,609.11,608.13,1.0]
[1743307216844,0.32834791,609.11,608.14,0.28590677]
[1743307217742,0.32834791,609.11,608.26,1.0]
[1743307225258,0.32834791,609.11,608.4,1.0]
[1743307232256,0.966,609.12,608.4,1.0]
[1743307235549,1.463,609.11,608.53,1.0]
[1743307236954,1.463,609.11,608.36,0.28581871]
[1743307236955,1.463,609.11,608.66,1.0]
[1743307238858,0.992,609.1,608.66,1.0]
[1743307249067,0.992,609.1,608.8,1.0]
[1743307256170,1.40188885,610.21,608.8,1.0]
[1743307256371,2.52359774,610.21,608.8,1.0]
[1743307256565,1.40188885,610.2,608.8,1.0]
[1743307256768,0.32777213,610.18,608.8,1.0]
[1743307257065,1.18,610.17,608.8,1.0]
[1743307257266,0.32778824,610.15,608.8,1.0]
[1743307257866,1.40724267,610.14,608.8,1.0]
[1743307258070,0.32780436,610.12,608.8,1.0]
[1743307258572,0.32780436,610.12,608.94,1.0]
[1743307258768,2.48570889,610.11,608.94,1.0]
[1743307258969,0.32781511,610.1,608.94,1.0]
[1743307259368,1.449524,610.1,608.94,1.0]
[1743307260175,1.12170889,610.09,608.94,1.0]
[1743307260568,1.12170889,610.08,608.94,1.0]
[1743307260773,1.12170889,610.08,608.81,1.0]
[1743307261177,1.12170889,610.07,608.81,1.0]
[1743307261376,0.32784198,610.05,608.81,1.0]
[1743307261969,1.12170889,610.04,608.81,1.0]
[1743307262173,0.3278581,610.02,608.81,1.0]
[1743307262774,1.12170889,610.01,608.81,1.0]
[1743307263480,1.12170889,610.0,608.81,1.0]
[1743307263774,0.3278796,609.98,608.81,1.0]
[1743307264179,1.12170889,609.97,608.81,1.0]
[1743307264377,0.32789035,609.96,608.81,1.0]
[1743307264774,0.61348154,609.96,608.81,1.0]
[1743307264974,0.32789572,609.95,608.81,1.0]
[1743307265674,0.32104097,609.95,608.81,1.0]
[1743307267774,0.28559236,609.94,608.81,1.0]
[1743307267974,0.32790648,609.93,608.81,1.0]
[1743307270676,1.12170889,609.92,608.81,1.0]
[1743307270876,0.32791723,609.91,608.81,1.0]
[1743307272279,1.12170889,609.9,608.81,1.0]
[1743307272478,0.32792798,609.89,608.81,1.0]
[1743307272984,1.44963687,609.89,608.81,1.0]
[1743307273780,0.28561697,609.88,608.81,1.0]
[1743307273984,0.32793874,609.87,608.81,1.0]
[1743307276786,0.28562283,609.86,608.81,1.0]
[1743307277081,0.32794949,609.85,608.81,1.0]
[1743307279588,0.32794949,609.85,608.11,2.47085025]
[1743307279792,0.32794949,609.85,608.61,1.0]
[1743307279989,0.28564862,609.84,608.8,0.28564862]
[1743307280391,0.28564862,609.84,608.13,0.32887704]
[1743307280591,0.28564862,609.84,608.61,1.0]
[1743307280786,0.32796562,609.82,608.61,1.0]
[1743307281689,0.32796562,609.82,608.62,0.28567441]
[1743307283186,1.98296562,609.82,608.62,0.28567441]
[1743307285590,1.98296562,609.82,608.13,0.32887704]
[1743307285791,1.98296562,609.82,608.61,1.0]
[1743307286093,0.28573305,609.81,608.62,0.28573305]
[1743307286294,0.32798176,609.79,608.62,0.28573305]
[1743307288490,0.32798176,609.79,608.16,2.47085025]
[1743307288694,0.32798176,609.79,608.61,1.0]
[1743307288994,0.28573071,609.78,608.62,0.28573071]
[1743307289201,0.32799252,609.77,608.62,0.28573071]
[1743307291503,0.32799252,609.77,608.19,2.47085025]
[1743307291700,0.32799252,609.77,608.61,1.0]
[1743307291905,0.28572484,609.76,608.61,1.0]
[1743307292206,0.32800328,609.75,608.61,1.0]
[1743307292808,0.32800328,609.75,608.76,1.0]
[1743307299914,0.32800328,609.75,608.9,1.0]
[1743307304511,1.097,609.74,608.9,1.0]
[1743307315719,1.097,609.74,608.46,2.47085025]
[1743307316020,1.097,609.74,608.88,0.28559587]
[1743307316218,1.435,609.73,608.47,0.32869327]
[1743307316413,1.435,609.73,608.87,1.0]
[1743307316614,1.435,609.73,608.88,0.28559939]
[1743307319521,1.435,609.73,608.88,1.28559939]
[1743307321621,1.435,609.73,608.88,1.0]
[1743307321823,1.435,609.73,608.88,1.28559939]
[1743307324524,1.435,609.73,608.88,1.0]
[1743307324923,1.435,609.73,608.88,1.28558533]
[1743307325724,1.435,609.73,609.01,1.0]
[1743307329228,1.097,609.74,609.01,1.0]
[1743307332231,1.022,609.73,609.01,1.0]
[1743307338439,0.914,609.72,609.01,1.0]
[1743307353549,0.32800328,609.75,609.01,1.0]
[1743307373377,1.74200328,609.75,609.01,1.0]
[1743307373964,1.414,609.75,609.01,1.0]
[1743307379076,1.29,609.74,609.01,1.0]
[1743307379975,1.29,609.74,609.2,1.0]
[1743307407189,0.884,609.75,609.2,1.0]
[1743307409993,1.07,609.74,609.2,1.0]
[1743307425105,0.884,609.75,609.2,1.0]
[1743307428512,3.58535101,610.61,609.2,1.0]
[1743307428513,10.25526331,610.57,609.2,1.0]
[1743307428706,0.32757349,610.55,609.2,1.0]
[1743307428907,2.66984826,610.55,609.2,1.0]
[1743307429113,1.12677349,610.54,609.2,1.0]
[1743307429313,0.32758959,610.52,609.2,1.0]
[1743307429910,1.12677349,610.51,609.2,1.0]
[1743307430213,0.32760569,610.49,609.2,1.0]
[1743307430913,1.12677349,610.48,609.2,1.0]
[1743307431212,0.32762179,610.46,609.2,1.0]
[1743307431708,1.12677349,610.45,609.2,1.0]
[1743307431909,0.32763252,610.44,609.2,1.0]
[1743307433012,0.28537338,610.43,609.2,1.0]
[1743307433207,0.32764326,610.42,609.2,1.0]
[1743307434311,1.45441675,610.42,609.2,1.0]
[1743307435017,1.12677349,610.41,609.2,1.0]
[1743307435216,0.32765399,610.4,609.2,1.0]
[1743307435917,1.12677349,610.39,609.2,1.0]
[1743307436219,0.32766473,610.38,609.2,1.0]
[1743307436614,1.12677349,610.37,609.2,1.0]
[1743307436814,0.32767547,610.36,609.2,1.0]
[1743307437211,1.45444896,610.36,609.2,1.0]
[1743307437616,1.12677349,610.35,609.2,1.0]
[1743307437818,0.3276862,610.34,609.2,1.0]
[1743307438011,0.3276862,610.34,609.34,1.0]
[1743307446816,1.589,610.33,609.34,1.0]
[1743307450018,0.32769694,610.32,609.34,1.0]
[1743307450522,1.12677349,610.31,609.29,0.28535583]
[1743307450722,0.32770768,610.3,609.18,2.47085025]
[1743307450918,0.32770768,610.3,609.29,0.28540381]
[1743307451315,1.12677349,610.29,609.18,2.47085025]
[1743307451520,0.32771842,610.28,609.2,1.0]
[1743307451722,1.45449191,610.28,609.2,1.0]
[1743307451922,1.45449191,610.28,609.21,0.28540732]
[1743307452318,1.12677349,610.27,609.21,0.28540732]
[1743307452520,0.32772916,610.26,609.21,0.28540732]
[1743307453123,1.45450265,610.26,609.21,0.28540732]
[1743307453625,0.32772916,610.26,609.22,1.0]
[1743307457522,1.139,610.25,609.22,1.0]
[1743307459326,1.46673453,610.25,609.22,1.0]
[1743307463829,0.3277399,610.24,609.22,1.0]
[1743307468533,1.12677349,610.23,609.22,1.0]
[1743307468731,0.32775064,610.22,609.22,1.0]
[1743307474139,1.234,610.21,609.22,1.0]
[1743307474439,0.32776138,610.2,609.22,1.0]
[1743307479844,1.21776138,610.2,609.22,1.0]
[1743307488853,2.58076138,610.2,609.22,1.0]
[1743307501168,2.58076138,610.2,609.36,1.0]
[1743307514479,2.58076138,610.2,609.34,0.28539445]
[1743307519595,2.58076138,610.2,608.73,2.47085025]
[1743307519887,2.58076138,610.2,609.23,1.0]
[1743307520089,2.58076138,610.2,609.32,0.28550098]
[1743307520389,2.58076138,610.2,608.74,0.32854749]
[1743307520687,2.58076138,610.2,609.23,1.0]
[1743307521088,2.58076138,610.2,609.24,0.28544009]
[1743307522688,2.58076138,610.2,608.74,0.32854749]
[1743307522884,2.58076138,610.2,609.24,0.28549747]
[1743307523389,2.58076138,610.2,608.74,0.32854749]
[1743307523591,2.58076138,610.2,609.18,1.0]
[1743307525089,3.70753487,610.2,609.18,1.0]
[1743307525289,1.41351977,610.19,609.18,1.0]
[1743307525491,0.32777213,610.18,609.18,1.0]
[1743307525891,1.45454562,610.18,609.18,1.0]
[1743307526488,0.32777213,610.18,609.18,1.0]
[1743307527300,1.12677349,610.17,609.18,1.0]
[1743307527492,0.32778287,610.16,609.18,1.0]
[1743307527793,1.45455636,610.16,609.18,1.0]
[1743307528402,0.32778287,610.16,609.36,1.0]
[1743307529294,0.929,610.15,609.36,1.0]
[1743307529691,1.711,610.14,609.36,1.0]
[1743307551413,1.143,610.13,609.36,1.0]
[1743307558329,1.618,610.12,609.36,1.0]
[1743307565545,1.618,610.12,609.35,0.28541785]
[1743307565942,1.618,610.12,608.9,2.47085025]
[1743307566139,1.618,610.12,609.13,1.0]
[1743307566441,0.32780973,610.11,609.24,0.28551386]
[1743307566636,0.32780973,610.11,608.9,2.47085025]
[1743307566839,0.32780973,610.11,609.24,0.28548693]
[1743307567340,0.32780973,610.11,609.11,1.0]
[1743307567537,0.32780973,610.11,609.24,0.28548927]
[1743307567940,0.28548927,610.1,608.74,2.79939774]
[1743307568142,0.28548927,610.1,609.11,1.0]
[1743307568638,0.32782048,610.09,609.11,1.0]
[1743307569237,0.32782048,610.09,609.12,0.28549161]
[1743307570740,0.32782048,610.09,608.74,0.32854749]
[1743307570943,0.32782048,610.09,609.11,1.0]
[1743307571135,0.32782048,610.09,609.12,0.28553495]
[1743307573147,0.995,610.08,609.12,0.28553495]
[1743307573344,0.32783123,610.07,609.12,0.28553495]
[1743307573747,0.32783123,610.07,608.74,0.32854749]
[1743307574047,0.28554315,610.06,609.12,0.28554315]
[1743307574345,0.32784198,610.05,608.74,0.32854749]
[1743307574546,0.32784198,610.05,609.01,1.0]
[1743307575246,0.32784198,610.05,609.02,0.28552675]
[1743307577051,1.171,610.04,609.02,0.28552675]
[1743307577644,0.3278581,610.02,609.02,0.28552675]
[1743307585754,0.3278581,610.02,608.74,0.32854749]
[1743307585963,0.28559822,610.01,609.0,0.28559822]
[1743307586156,0.32787422,609.99,609.0,0.28559822]
[1743307586354,0.32787422,609.99,608.74,0.32854749]
[1743307586559,0.32787422,609.99,608.85,1.0]
[1743307587553,0.32787422,609.99,608.86,0.28558884]
[1743307588352,0.32787422,609.99,608.88,1.0]
[1743307588961,0.61343728,609.99,608.88,1.0]
[1743307591758,0.32787422,609.99,608.88,1.0]
[1743307595062,0.28558884,609.98,608.88,1.0]
[1743307595255,0.32789035,609.96,608.88,1.0]
[1743307599359,0.32789035,609.96,609.04,1.0]
[1743307604468,2.55,609.95,609.04,1.0]
[1743307622885,2.55,609.95,609.18,1.0]
[1743307635193,2.55,609.95,609.32,1.0]
[1743307638294,2.55,609.95,609.19,1.0]
[1743307647602,2.55,609.95,609.23,2.47085025]
[1743307649898,2.55,609.95,609.24,2.47085025]
[1743307651805,2.55,609.95,609.23,2.47085025]
[1743307653104,2.55,609.95,609.25,2.47085025]
[1743307654205,2.55,609.95,609.22,0.28544946]
[1743307654902,2.55,609.95,609.17,2.47085025]
[1743307655104,2.55,609.95,609.22,0.28548107]
[1743307657711,2.55,609.95,609.03,2.47085025]
[1743307657910,2.55,609.95,609.21,1.0]
[1743307658111,2.55,609.95,609.22,0.28549747]
[1743307660811,2.55,609.95,608.97,2.47085025]
[1743307661011,2.55,609.95,609.19,1.0]
[1743307661213,2.55,609.95,609.22,0.28550449]
[1743307664812,2.55,609.95,609.19,1.0]
[1743307665516,2.55,609.95,609.2,0.28547873]
[1743307666819,2.55,609.95,609.05,2.47085025]
[1743307667020,2.55,609.95,609.19,1.0]
[1743307670528,2.55,609.95,609.22,2.47085025]
[1743307672123,2.55,609.95,609.31,2.47085025]
[1743307672819,2.55,609.95,609.32,1.0]
[1743307674425,2.55,609.95,609.36,2.47085025]
[1743307675625,2.55,609.95,609.11,0.28547873]
[1743307675825,2.55,609.95,609.32,1.0]
[1743307686531,2.55,609.95,609.36,2.47085025]
[1743307688438,2.55,609.95,609.32,1.28540966]
[1743307693842,2.55,609.95,609.32,1.0]
[1743307694141,2.55,609.95,609.32,1.28541434]
[1743307698047,2.55,609.95,609.48,1.0]
[1743307709662,2.55,609.95,609.63,1.0]
[1743307749498,2.55,609.95,609.82,1.0]
[1743307749895,1.12830942,610.9,609.82,1.0]
[1743307750098,0.32739118,610.89,609.82,1.0]
[1743307751103,0.61252139,610.89,609.82,1.0]
[1743307753406,1.315,610.88,609.82,1.0]
[1743307753704,2.256,610.88,609.82,1.0]
[1743307754206,0.3274019,610.87,609.82,1.0]
[1743307768615,0.3274019,610.87,609.96,1.0]
[1743307771821,1.368,610.86,609.96,1.0]
[1743307774125,1.546,610.85,609.96,1.0]
[1743307776125,1.87341262,610.85,609.96,1.0]
[1743307776326,0.32741798,610.84,609.96,1.0]
[1743307796134,0.28513956,610.83,609.96,1.0]
[1743307796436,2.96913956,610.83,609.96,1.0]
[1743307796636,0.3274287,610.82,609.96,1.0]
[1743307799239,0.28514306,610.81,609.96,1.0]
[1743307799434,0.32743942,610.8,609.96,1.0]
[1743307811747,1.46123464,610.8,609.96,1.0]
[1743307812247,0.32743942,610.8,609.96,1.0]
[1743307812649,1.13379522,610.79,609.96,1.0]
[1743307813043,0.32745014,610.78,609.96,1.0]
[1743307813242,1.46124536,610.78,609.96,1.0]
[1743307813443,0.3274555,610.77,609.96,1.0]
[1743307813750,1.46125072,610.77,609.96,1.0]
[1743307814548,1.13379522,610.76,609.96,1.0]
[1743307814746,0.32746623,610.75,609.96,1.0]
[1743307818045,1.051,610.74,609.96,1.0]
[1743307819253,0.32747695,610.73,609.96,1.0]
[1743307822457,1.307,610.72,609.96,1.0]
[1743307826459,1.307,610.72,609.95,0.28514657]
[1743307829066,0.32748767,610.71,609.95,0.28514657]
[1743307831769,0.32748767,610.71,609.53,2.47085025]
[1743307831970,0.32748767,610.71,609.81,1.0]
[1743307832169,0.32748767,610.71,609.92,0.28521083]
[1743307832570,0.32748767,610.71,609.7,2.47085025]
[1743307832771,0.32748767,610.71,609.81,1.0]
[1743307833273,0.32748767,610.71,609.82,0.28518512]
[1743307834769,0.32748767,610.71,609.4,2.47085025]
[1743307834970,0.32748767,610.71,609.79,1.0]
[1743307835171,0.32748767,610.71,609.82,0.28523304]
[1743307837768,0.32748767,610.71,609.4,0.32819166]
[1743307837973,0.32748767,610.71,609.77,1.0]
[1743307838170,0.32748767,610.71,609.82,0.28523889]
[1743307840869,1.447,610.7,609.4,0.32819166]
[1743307841071,1.447,610.7,609.75,1.0]
[1743307841264,0.3274984,610.69,609.82,0.28524006]
[1743307841672,2.0884984,610.69,609.82,0.28524006]
[1743307842172,3.22229362,610.69,609.82,0.28524006]
[1743307843971,3.22229362,610.69,609.75,1.0]
[1743307844372,3.22229362,610.69,609.82,0.28524356]
[1743307846875,3.22229362,610.69,609.4,0.32819166]
[1743307847175,3.22229362,610.69,609.82,0.28524356]
[1743307847377,3.22229362,610.69,609.4,0.32819166]
[1743307847676,3.22229362,610.69,609.75,1.0]
[1743307848170,3.22229362,610.69,609.76,0.28520265]
[1743307849175,2.0884984,610.69,609.76,0.28520265]
[1743307849781,2.0884984,610.69,609.56,2.47085025]
[1743307849981,2.0884984,610.69,609.75,1.0]
[1743307850279,2.0884984,610.69,609.56,2.47085025]
[1743307850280,2.0884984,610.69,609.76,0.28521785]
[1743307851084,3.22351557,610.69,609.76,0.28521785]
[1743307852885,3.22351557,610.69,609.5,2.47085025]
[1743307853087,3.22351557,610.69,609.76,0.28522486]
[1743307853585,3.22351557,610.69,609.48,2.47085025]
[1743307853785,3.22351557,610.69,609.75,1.0]
[1743307854787,3.22351557,610.69,609.76,0.28519564]
[1743307855681,2.0884984,610.69,609.76,0.28519564]
[1743307855882,2.0884984,610.69,609.49,2.47085025]
[1743307856185,2.0884984,610.69,609.76,0.28522603]
[1743307856583,2.0884984,610.69,609.49,2.47085025]
[1743307856782,2.0884984,610.69,609.75,1.0]
[1743307857888,2.0884984,610.69,609.76,0.28519564]
[1743307858790,2.0884984,610.69,609.43,2.47085025]
[1743307858990,2.0884984,610.69,609.75,1.0]
[1743307859301,2.0884984,610.69,609.76,0.28523304]
[1743307861792,2.0884984,610.69,609.47,2.47085025]
[1743307861993,2.0884984,610.69,609.75,1.0]
[1743307862195,2.0884984,610.69,609.76,0.28522837]
[1743307867090,2.0884984,610.69,609.79,2.47085025]
[1743307868194,2.0884984,610.69,609.66,2.47085025]
[1743307868195,2.0884984,610.69,609.87,2.47085025]
[1743307868397,3.22306212,610.69,609.87,2.47085025]
[1743307869696,2.0884984,610.69,609.87,2.47085025]
[1743307869991,2.0884984,610.69,609.77,0.28519097]
[1743307869992,2.0884984,610.69,609.78,2.47085025]
[1743307871699,2.0884984,610.69,609.77,2.75604239]
[1743307871896,3.3784984,610.69,609.77,2.75604239]
[1743307872699,1.13456372,610.68,609.77,2.75604239]
[1743307872896,0.32750912,610.67,609.77,2.75604239]
[1743307873706,0.32750912,610.67,609.77,0.28519214]
[1743307875708,1.616,610.66,609.77,0.28519214]
[1743307875909,0.32751985,610.65,609.77,0.28519214]
[1743307876814,0.32751985,610.65,609.68,2.47085025]
[1743307877014,0.32751985,610.65,609.73,1.0]
[1743307877215,0.32751985,610.65,609.77,0.28520733]
[1743307879916,0.32751985,610.65,609.66,2.47085025]
[1743307880120,0.32751985,610.65,609.77,0.28520967]
[1743307880515,0.32751985,610.65,609.66,2.47085025]
[1743307880715,0.32751985,610.65,609.73,1.0]
[1743307881921,0.32751985,610.65,609.74,0.28518045]
[1743307882821,0.32751985,610.65,609.73,1.0]
[1743307883223,0.32751985,610.65,609.74,0.28517811]
[1743307884824,0.32751985,610.65,609.86,1.0]
[1743307891021,1.556,610.64,609.86,1.0]
[1743307903035,1.776,610.63,609.86,1.0]
[1743307905640,1.146,610.62,609.86,1.0]
[1743307916347,1.146,610.62,609.9,2.47085025]
[1743307918454,1.146,610.62,609.99,2.47085025]
[1743307920256,1.146,610.62,609.91,0.28511737]
[1743307920557,1.146,610.62,609.91,1.28511737]
[1743307921957,1.146,610.62,609.91,1.0]
[1743307922352,1.146,610.62,609.91,1.28512671]
[1743307925461,1.776,610.63,609.91,1.28512671]
[1743307925861,1.776,610.63,609.91,0.28512671]
[1743307927967,1.776,610.63,609.64,2.47085025]
[1743307928163,1.776,610.63,609.91,0.2851898]
[1743307928567,1.776,610.63,609.64,2.47085025]
[1743307928765,1.776,610.63,609.85,1.0]
[1743307929262,0.32751985,610.65,609.86,0.28516526]
[1743307929468,1.346,610.64,609.86,0.28516526]
[1743307932770,1.453,610.63,609.86,0.28516526]
[1743307933971,1.453,610.63,609.56,2.47085025]
[1743307934175,1.453,610.63,609.86,0.28522019]
[1743307934572,1.453,610.63,609.5,2.47085025]
[1743307934773,1.453,610.63,609.71,1.0]
[1743307935167,1.453,610.63,609.72,0.28520265]
[1743307936575,1.453,610.63,609.72,1.28520265]
[1743307936769,1.453,610.63,609.47,2.47085025]
[1743307936970,0.32753594,610.62,609.68,1.0]
[1743307937171,0.61277249,610.62,609.72,0.28523655]
[1743307941283,0.32753594,610.62,609.72,0.28523655]
[1743307942882,0.32753594,610.62,609.4,0.32819166]
[1743307943076,0.32753594,610.62,609.7,1.0]
[1743307943282,0.32753594,610.62,609.72,0.28524356]
[1743307943482,0.32753594,610.62,609.4,0.32819166]
[1743307943685,0.32753594,610.62,609.7,1.0]
[1743307944883,0.32753594,610.62,609.71,0.28520616]
[1743307951986,0.32753594,610.62,609.4,0.32819166]
[1743307952182,0.32753594,610.62,609.71,0.28524356]
[1743307952586,0.32753594,610.62,609.4,0.32819166]
[1743307952779,0.32753594,610.62,609.7,1.0]
[1743307953384,0.32753594,610.62,609.71,0.2852085]
[1743307954989,0.32753594,610.62,609.7,1.0]
[1743307955183,0.32753594,610.62,609.71,0.28524356]
[1743307957991,0.32753594,610.62,609.69,1.0]
[1743307958391,2.853,610.61,609.71,0.28522954]
[1743307960995,2.853,610.61,609.4,0.32819166]
[1743307961196,2.853,610.61,609.69,1.0]
[1743307961399,2.853,610.61,609.71,0.2852459]
[1743307964002,2.853,610.61,609.49,2.47085025]
[1743307964202,2.853,610.61,609.71,0.28523538]
[1743307964702,2.853,610.61,609.49,2.47085025]
[1743307964902,2.853,610.61,609.69,1.0]
[1743307965300,2.853,610.61,609.7,0.285212]
[1743307966898,2.853,610.61,609.5,2.47085025]
[1743307967100,2.853,610.61,609.7,0.28523421]
[1743307967498,2.853,610.61,609.5,2.47085025]
[1743307967695,2.853,610.61,609.69,1.0]
[1743307968703,2.853,610.61,609.7,0.28520265]
[1743307970002,2.853,610.61,609.69,1.0]
[1743307970203,2.853,610.61,609.7,0.28519798]
[1743307970399,0.32753594,610.62,609.7,0.28519798]
[1743307972902,1.618,610.61,609.7,0.28519798]
[1743307973309,1.139,610.6,609.7,0.28519798]
[1743307974600,1.139,610.6,609.86,1.0]
[1743307994631,1.622,610.59,609.86,1.0]
[1743307999238,1.321,610.58,609.86,1.0]
[1743308002142,1.321,610.58,610.0,1.0]
[1743308007751,1.321,610.58,610.18,1.0]
[1743308023273,2.59,610.58,610.18,1.0]
[1743308037881,2.59,610.58,610.17,0.28508116]
[1743308038977,2.59,610.58,609.89,2.47085025]
[1743308039178,2.59,610.58,610.05,1.0]
[1743308039380,2.59,610.58,610.17,0.2851197]
[1743308039577,2.59,610.58,609.89,2.47085025]
[1743308039778,2.59,610.58,610.03,1.0]
[1743308040385,2.59,610.58,610.04,0.28511503]
[1743308041988,2.59,610.58,609.71,2.47085025]
[1743308042186,2.59,610.58,609.99,1.0]
[1743308042383,2.59,610.58,610.04,0.28513372]
[1743308045089,2.59,610.58,609.74,2.47085025]
[1743308045286,2.59,610.58,610.04,0.2851489]
[1743308045589,2.59,610.58,609.74,2.47085025]
[1743308045792,2.59,610.58,609.99,1.0]
[1743308046188,2.59,610.58,610.0,0.28509868]
[1743308050894,2.59,610.58,609.78,2.47085025]
[1743308051194,2.59,610.58,609.97,1.0]
[1743308072403,2.59,610.58,609.96,0.28515942]
[1743308074907,2.59,610.58,609.4,0.32819166]
[1743308075109,2.59,610.58,609.9,1.0]
[1743308075311,2.59,610.58,609.96,0.28520032]
[1743308078006,2.59,610.58,609.94,1.0]
[1743308078407,2.59,610.58,609.96,0.28518396]
[1743308080108,2.59,610.58,609.98,1.0]
[1743308113323,2.59,610.58,610.11,1.0]
[1743308137243,2.59,610.58,610.26,1.0]
[1743308169367,2.59,610.58,610.25,0.28503446]
[1743308170969,2.59,610.58,609.73,2.47085025]
[1743308171169,2.59,610.58,610.05,1.0]
[1743308171375,2.59,610.58,610.23,0.28512905]
[1743308171675,2.59,610.58,610.05,1.0]
[1743308171872,2.59,610.58,610.23,0.28509167]
[1743308172274,2.59,610.58,609.74,0.32800865]
[1743308172474,2.59,610.58,610.23,0.28509167]
[1743308172873,2.59,610.58,609.74,0.32800865]
[1743308173170,2.59,610.58,610.23,0.28508817]
[1743308173372,2.59,610.58,609.74,0.32800865]
[1743308173570,2.59,610.58,610.1,1.0]
[1743308173770,2.59,610.58,610.23,0.28508583]
[1743308173969,2.59,610.58,609.74,0.32800865]
[1743308174269,2.59,610.58,610.1,1.0]
[1743308174471,2.59,610.58,610.23,0.28508583]
[1743308174670,2.59,610.58,609.74,0.32800865]
[1743308174869,2.59,610.58,610.1,1.0]
[1743308175568,2.59,610.58,610.11,0.28508583]
[1743308176978,2.59,610.58,609.74,0.32800865]
[1743308177179,2.59,610.58,610.09,1.0]
[1743308186689,2.59,610.58,609.89,0.28508467]
[1743308186896,2.59,610.58,609.95,1.0]
[1743308198404,2.58312821,610.58,609.95,1.0]
[1743308198709,1.269,610.58,609.95,1.0]
[1743308211413,1.269,610.58,610.1,1.0]
[1743308245751,1.269,610.58,610.09,0.2850905]
[1743308246152,1.269,610.58,609.97,2.47085025]
[1743308246350,1.269,610.58,610.05,1.0]
[1743308247450,1.269,610.58,610.06,0.28509634]
[1743308249050,1.269,610.58,609.74,0.32800865]
[1743308249251,1.269,610.58,610.05,1.0]
[1743308249555,1.269,610.58,610.06,0.28513255]
[1743308249756,2.642,610.58,610.06,0.28513255]
[1743308252255,2.642,610.58,610.05,1.0]
[1743308252455,2.642,610.58,610.06,0.28513255]